[Event "Titled Tuesday Blitz November 2 2021"]
[White "Demidov, Mikhail"]
[Black "Vlassov, Nikolai"]
[WhiteFideId "4197143"]
[BlackFideId "4103360"]
[WhiteElo "2527"]
[BlackElo "2407"]
[Result "1-0"]
[Round "04"]
[TimeControl "180+1"]
[Date "2021.11.02"]
[WhiteClock "0:01:30"]
[BlackClock "0:01:07"]

1. d4 {[%clk 0:03:00]}  Nf6 {[%clk 0:02:59]} 2. Bg5 {[%clk 0:03:00]}  e6 {[%clk 0:02:59]} 3. e4 {[%clk 0:03:00]}  h6 {[%clk 0:02:58]} 4. Bxf6 {[%clk 0:02:59]}  Qxf6 {[%clk 0:02:58]} 5. c3 {[%clk 0:02:59]}  d5 {[%clk 0:02:54]} 6. Nd2 {[%clk 0:02:58]}  dxe4 {[%clk 0:02:48]} 7. Nxe4 {[%clk 0:02:58]}  Qg6 {[%clk 0:02:49]} 8. Qf3 {[%clk 0:02:54]}  e5 {[%clk 0:02:39]} 9. dxe5 {[%clk 0:02:47]}  Nc6 {[%clk 0:02:39]} 10. Bb5 {[%clk 0:02:45]}  Bd7 {[%clk 0:02:39]} 11. O-O-O {[%clk 0:02:40]}  O-O-O {[%clk 0:02:34]} 12. Ne2 {[%clk 0:02:30]}  Nxe5 {[%clk 0:02:31]} 13. Bxd7+ {[%clk 0:02:30]}  Rxd7 {[%clk 0:02:32]} 14. Qe3 {[%clk 0:02:26]}  Qa6 {[%clk 0:02:10]} 15. Rxd7 {[%clk 0:02:18]}  Nxd7 {[%clk 0:02:09]} 16. Rd1 {[%clk 0:02:16]}  Qxa2 {[%clk 0:01:57]} 17. Qh3 {[%clk 0:02:00]}  Qe6 {[%clk 0:01:50]} 18. Qxe6 {[%clk 0:01:59]}  fxe6 {[%clk 0:01:50]} 19. Nf4 {[%clk 0:01:59]}  e5 {[%clk 0:01:19]} 20. Ng6 {[%clk 0:01:54]}  Rg8 {[%clk 0:01:20]} 21. f3 {[%clk 0:01:49]}  Nc5 {[%clk 0:01:07]} 22. Nxf8 {[%clk 0:01:30]}  Nxe4 {[%clk 0:01:07]} 23. Ng6 {[%clk 0:01:30]} 1-0


[Site "https://www.chess.com"]

[Event "Titled Tuesday Blitz November 2 2021"]
[White "Dilmukhametov, Artur"]
[Black "Rasulov, Vugar"]
[WhiteFideId "24179922"]
[BlackFideId "13402390"]
[WhiteElo "2272"]
[BlackElo "2560"]
[Result "0-1"]
[Round "04"]
[TimeControl "180+1"]
[Date "2021.11.02"]
[WhiteClock "0:00:01"]
[BlackClock "0:00:44"]

1. d4 {[%clk 0:03:00]}  Nf6 {[%clk 0:03:00]} 2. Nc3 {[%clk 0:03:00]}  d5 {[%clk 0:02:59]} 3. Bf4 {[%clk 0:03:01]}  a6 {[%clk 0:02:59]} 4. e3 {[%clk 0:03:01]}  c5 {[%clk 0:02:59]} 5. Nf3 {[%clk 0:02:58]}  cxd4 {[%clk 0:03:00]} 6. exd4 {[%clk 0:02:58]}  Nc6 {[%clk 0:03:00]} 7. Qd2 {[%clk 0:02:57]}  Bg4 {[%clk 0:02:59]} 8. Ne5 {[%clk 0:02:57]}  e6 {[%clk 0:02:57]} 9. f3 {[%clk 0:02:48]}  Bf5 {[%clk 0:02:57]} 10. g4 {[%clk 0:02:48]}  Bg6 {[%clk 0:02:56]} 11. h4 {[%clk 0:02:49]}  Nxe5 {[%clk 0:02:39]} 12. dxe5 {[%clk 0:02:48]}  d4 {[%clk 0:02:40]} 13. Ne2 {[%clk 0:02:09]}  Nd5 {[%clk 0:02:38]} 14. Nxd4 {[%clk 0:01:22]}  Rc8 {[%clk 0:02:29]} 15. c3 {[%clk 0:01:21]}  h5 {[%clk 0:02:24]} 16. Bg5 {[%clk 0:01:07]}  Qb6 {[%clk 0:02:20]} 17. Rh2 {[%clk 0:00:51]}  Qc7 {[%clk 0:02:00]} 18. Bf4 {[%clk 0:00:45]}  Bc5 {[%clk 0:01:47]} 19. Bg3 {[%clk 0:00:43]}  Rd8 {[%clk 0:01:47]} 20. Bd3 {[%clk 0:00:39]}  Bxd4 {[%clk 0:01:38]} 21. cxd4 {[%clk 0:00:34]}  Bxd3 {[%clk 0:01:37]} 22. Qxd3 {[%clk 0:00:35]}  Nb4 {[%clk 0:01:27]} 23. Qc3 {[%clk 0:00:35]}  Qb6 {[%clk 0:01:27]} 24. a3 {[%clk 0:00:22]}  Nc6 {[%clk 0:01:26]} 25. O-O-O {[%clk 0:00:17]}  Rxd4 {[%clk 0:01:16]} 26. Rxd4 {[%clk 0:00:13]}  Qxd4 {[%clk 0:01:17]} 27. Qxd4 {[%clk 0:00:06]}  Nxd4 {[%clk 0:01:18]} 28. Rf2 {[%clk 0:00:04]}  Nc6 {[%clk 0:01:06]} 29. Kd2 {[%clk 0:00:04]}  Kd7 {[%clk 0:01:03]} 30. Ke3 {[%clk 0:00:04]}  Kc7 {[%clk 0:01:04]} 31. Rc2 {[%clk 0:00:04]}  Kb6 {[%clk 0:00:57]} 32. Ke4 {[%clk 0:00:05]}  Kc7 {[%clk 0:00:55]} 33. Bf2 {[%clk 0:00:04]}  a5 {[%clk 0:00:49]} 34. b4 {[%clk 0:00:01]}  axb4 {[%clk 0:00:49]} 35. axb4 {[%clk 0:00:02]}  Kd7 {[%clk 0:00:45]} 36. b5 {[%clk 0:00:03]}  Ne7 {[%clk 0:00:45]} 37. Bc5 {[%clk 0:00:01]}  Nd5 {[%clk 0:00:44]} 0-1


[Site "https://www.chess.com"]

[Event "Titled Tuesday Blitz November 2 2021"]
[White "Djordjevic, Vuk"]
[Black "Perera Alfonso, Rene Humberto"]
[WhiteFideId "902098"]
[BlackFideId "3514722"]
[WhiteElo "2463"]
[BlackElo "2313"]
[Result "1-0"]
[Round "04"]
[TimeControl "180+1"]
[Date "2021.11.02"]
[WhiteClock "0:01:08"]
[BlackClock "0:00:33"]

1. d4 {[%clk 0:03:00]}  d5 {[%clk 0:02:58]} 2. Bf4 {[%clk 0:03:00]}  Nf6 {[%clk 0:02:58]} 3. e3 {[%clk 0:03:01]}  c5 {[%clk 0:02:56]} 4. c3 {[%clk 0:03:01]}  Nc6 {[%clk 0:02:54]} 5. Nd2 {[%clk 0:03:01]}  e6 {[%clk 0:02:55]} 6. Ngf3 {[%clk 0:03:00]}  Bd6 {[%clk 0:02:55]} 7. Bg3 {[%clk 0:03:00]}  Qe7 {[%clk 0:02:53]} 8. Bb5 {[%clk 0:03:00]}  O-O {[%clk 0:02:52]} 9. O-O {[%clk 0:02:59]}  Bd7 {[%clk 0:02:50]} 10. Qe2 {[%clk 0:02:52]}  a6 {[%clk 0:02:44]} 11. Bxc6 {[%clk 0:02:50]}  Bxc6 {[%clk 0:02:45]} 12. a4 {[%clk 0:02:45]}  Rfc8 {[%clk 0:02:28]} 13. Ne5 {[%clk 0:02:40]}  Bxe5 {[%clk 0:02:25]} 14. Bxe5 {[%clk 0:02:40]}  Nd7 {[%clk 0:02:18]} 15. Nf3 {[%clk 0:02:38]}  f6 {[%clk 0:02:14]} 16. Bg3 {[%clk 0:02:37]}  e5 {[%clk 0:02:12]} 17. dxe5 {[%clk 0:02:37]}  fxe5 {[%clk 0:02:12]} 18. c4 {[%clk 0:02:32]}  e4 {[%clk 0:02:04]} 19. cxd5 {[%clk 0:02:20]}  Bxd5 {[%clk 0:01:42]} 20. Nd2 {[%clk 0:02:00]}  Qe6 {[%clk 0:01:41]} 21. f3 {[%clk 0:01:55]}  exf3 {[%clk 0:01:38]} 22. gxf3 {[%clk 0:01:54]}  c4 {[%clk 0:01:29]} 23. e4 {[%clk 0:01:52]}  c3 {[%clk 0:01:22]} 24. bxc3 {[%clk 0:01:50]}  Rxc3 {[%clk 0:01:23]} 25. Rfe1 {[%clk 0:01:26]}  Re8 {[%clk 0:01:13]} 26. Qf2 {[%clk 0:01:18]}  Bc6 {[%clk 0:01:07]} 27. Qd4 {[%clk 0:01:18]}  Rc2 {[%clk 0:00:58]} 28. Rec1 {[%clk 0:01:14]}  Rxc1+ {[%clk 0:00:43]} 29. Rxc1 {[%clk 0:01:15]}  Bxa4 {[%clk 0:00:34]} 30. Qxa4 {[%clk 0:01:09]}  b5 {[%clk 0:00:33]} 31. Qd4 {[%clk 0:01:08]} 1-0


[Site "https://www.chess.com"]

[Event "Titled Tuesday Blitz November 2 2021"]
[White "Gubajdullin, Alexei"]
[Black "Sychev, Klementy"]
[WhiteFideId "4141202"]
[BlackFideId "4114060"]
[WhiteElo "2268"]
[BlackElo "2615"]
[Result "0-1"]
[Round "04"]
[TimeControl "180+1"]
[Date "2021.11.02"]
[WhiteClock "0:00:06"]
[BlackClock "0:00:29"]

1. d4 {[%clk 0:03:00]}  Nf6 {[%clk 0:02:57]} 2. Nf3 {[%clk 0:03:00]}  d5 {[%clk 0:02:57]} 3. Bf4 {[%clk 0:03:00]}  Ne4 {[%clk 0:02:58]} 4. Nbd2 {[%clk 0:02:58]}  f6 {[%clk 0:02:57]} 5. e3 {[%clk 0:02:55]}  g5 {[%clk 0:02:51]} 6. Nxe4 {[%clk 0:02:28]}  gxf4 {[%clk 0:02:50]} 7. Nh4 {[%clk 0:02:10]}  c6 {[%clk 0:02:05]} 8. Nc5 {[%clk 0:02:00]}  Qd6 {[%clk 0:01:38]} 9. Qh5+ {[%clk 0:01:59]}  Kd8 {[%clk 0:01:36]} 10. Ng6 {[%clk 0:01:40]}  hxg6 {[%clk 0:01:36]} 11. Qxh8 {[%clk 0:01:39]}  e5 {[%clk 0:01:35]} 12. Qh7 {[%clk 0:01:17]}  Nd7 {[%clk 0:01:15]} 13. Nxd7 {[%clk 0:01:11]}  Qb4+ {[%clk 0:00:53]} 14. Kd1 {[%clk 0:00:40]}  Bxd7 {[%clk 0:00:52]} 15. Qf7 {[%clk 0:00:23]}  Kc7 {[%clk 0:00:43]} 16. Qxf6 {[%clk 0:00:20]}  Qxb2 {[%clk 0:00:41]} 17. Rc1 {[%clk 0:00:15]}  Ba3 {[%clk 0:00:39]} 18. Qxe5+ {[%clk 0:00:14]}  Kb6 {[%clk 0:00:39]} 19. Bd3 {[%clk 0:00:14]}  Qxc1+ {[%clk 0:00:32]} 20. Ke2 {[%clk 0:00:14]}  Qxh1 {[%clk 0:00:33]} 21. Qxf4 {[%clk 0:00:09]}  Qxg2 {[%clk 0:00:32]} 22. Qf7 {[%clk 0:00:06]}  Bg4+ {[%clk 0:00:29]} 0-1


[Site "https://www.chess.com"]

[Event "Titled Tuesday Blitz November 2 2021"]
[White "Karolczuk, Iwo"]
[Black "Urazayev, Arystanbek"]
[WhiteFideId "21816972"]
[BlackFideId "13709810"]
[WhiteElo "2093"]
[BlackElo "2321"]
[Result "1/2-1/2"]
[Round "04"]
[TimeControl "180+1"]
[Date "2021.11.02"]
[WhiteClock "0:00:06"]
[BlackClock "0:00:05"]

1. d4 {[%clk 0:03:00]}  d5 {[%clk 0:03:00]} 2. Nf3 {[%clk 0:03:00]}  e6 {[%clk 0:03:00]} 3. c4 {[%clk 0:02:59]}  Nf6 {[%clk 0:03:01]} 4. e3 {[%clk 0:02:59]}  a6 {[%clk 0:03:01]} 5. Nbd2 {[%clk 0:02:55]}  c5 {[%clk 0:03:00]} 6. cxd5 {[%clk 0:02:54]}  exd5 {[%clk 0:03:00]} 7. b3 {[%clk 0:02:52]}  Nc6 {[%clk 0:03:00]} 8. Bb2 {[%clk 0:02:51]}  cxd4 {[%clk 0:03:01]} 9. Nxd4 {[%clk 0:02:51]}  Bb4 {[%clk 0:03:02]} 10. a3 {[%clk 0:02:50]}  Ba5 {[%clk 0:02:57]} 11. Bd3 {[%clk 0:02:44]}  Ne5 {[%clk 0:02:54]} 12. Be2 {[%clk 0:02:41]}  O-O {[%clk 0:02:48]} 13. O-O {[%clk 0:02:38]}  Re8 {[%clk 0:02:48]} 14. N2f3 {[%clk 0:02:36]}  Ng6 {[%clk 0:02:44]} 15. Rc1 {[%clk 0:02:34]}  Bg4 {[%clk 0:02:41]} 16. h3 {[%clk 0:02:33]}  Bd7 {[%clk 0:02:41]} 17. b4 {[%clk 0:02:32]}  Bb6 {[%clk 0:02:36]} 18. Qc2 {[%clk 0:02:26]}  Ne4 {[%clk 0:02:36]} 19. Qb3 {[%clk 0:02:07]}  Be6 {[%clk 0:02:24]} 20. Nxe6 {[%clk 0:02:06]}  fxe6 {[%clk 0:02:23]} 21. Rfd1 {[%clk 0:02:02]}  Qe7 {[%clk 0:02:22]} 22. Bd3 {[%clk 0:01:54]}  Nd6 {[%clk 0:02:09]} 23. Ne5 {[%clk 0:01:48]}  Nxe5 {[%clk 0:02:07]} 24. Bxe5 {[%clk 0:01:49]}  Nf7 {[%clk 0:02:07]} 25. Bb2 {[%clk 0:01:39]}  Rac8 {[%clk 0:02:06]} 26. Bb1 {[%clk 0:01:33]}  Qh4 {[%clk 0:01:51]} 27. Qd3 {[%clk 0:01:22]}  Nd6 {[%clk 0:01:45]} 28. Ba2 {[%clk 0:01:07]}  Ne4 {[%clk 0:01:44]} 29. Qe2 {[%clk 0:00:46]}  Rxc1 {[%clk 0:01:40]} 30. Rxc1 {[%clk 0:00:46]}  Rf8 {[%clk 0:01:40]} 31. Rf1 {[%clk 0:00:45]}  Qg5 {[%clk 0:01:29]} 32. Bc1 {[%clk 0:00:29]}  Bc7 {[%clk 0:01:23]} 33. Bb2 {[%clk 0:00:19]}  Qe7 {[%clk 0:01:08]} 34. Bb1 {[%clk 0:00:14]}  Qd6 {[%clk 0:01:06]} 35. f4 {[%clk 0:00:14]}  Bb6 {[%clk 0:00:54]} 36. Be5 {[%clk 0:00:12]}  Qc6 {[%clk 0:00:52]} 37. Bxe4 {[%clk 0:00:10]}  dxe4 {[%clk 0:00:52]} 38. Kh1 {[%clk 0:00:10]}  Qb5 {[%clk 0:00:47]} 39. Qxb5 {[%clk 0:00:06]}  axb5 {[%clk 0:00:48]} 40. Rd1 {[%clk 0:00:05]}  h5 {[%clk 0:00:30]} 41. Rd7 {[%clk 0:00:04]}  Rf7 {[%clk 0:00:31]} 42. Rd6 {[%clk 0:00:03]}  Bxe3 {[%clk 0:00:30]} 43. Rxe6 {[%clk 0:00:03]}  Bxf4 {[%clk 0:00:31]} 44. Bxf4 {[%clk 0:00:03]}  Rxf4 {[%clk 0:00:32]} 45. Re5 {[%clk 0:00:03]}  Kf7 {[%clk 0:00:20]} 46. Kh2 {[%clk 0:00:02]}  Kf6 {[%clk 0:00:20]} 47. Re8 {[%clk 0:00:02]}  Rf5 {[%clk 0:00:18]} 48. Rxe4 {[%clk 0:00:02]}  Rf2 {[%clk 0:00:14]} 49. Rd4 {[%clk 0:00:02]}  Ra2 {[%clk 0:00:14]} 50. Rd5 {[%clk 0:00:02]}  Rxa3 {[%clk 0:00:13]} 51. Rxb5 {[%clk 0:00:02]}  h4 {[%clk 0:00:14]} 52. Rxb7 {[%clk 0:00:02]}  g5 {[%clk 0:00:14]} 53. b5 {[%clk 0:00:03]}  Rb3 {[%clk 0:00:15]} 54. Rb6+ {[%clk 0:00:03]}  Kg7 {[%clk 0:00:15]} 55. Rb8 {[%clk 0:00:04]}  Rb1 {[%clk 0:00:14]} 56. b6 {[%clk 0:00:03]}  Kh7 {[%clk 0:00:14]} 57. Rb7+ {[%clk 0:00:03]}  Kg6 {[%clk 0:00:14]} 58. Rb8 {[%clk 0:00:04]}  Kg7 {[%clk 0:00:15]} 59. Rb7+ {[%clk 0:00:04]}  Kg6 {[%clk 0:00:15]} 60. Rb8 {[%clk 0:00:04]}  g4 {[%clk 0:00:16]} 61. hxg4 {[%clk 0:00:04]}  Rb3 {[%clk 0:00:16]} 62. b7 {[%clk 0:00:03]}  Kg7 {[%clk 0:00:17]} 63. g5 {[%clk 0:00:04]}  Kh7 {[%clk 0:00:15]} 64. Kg1 {[%clk 0:00:04]}  Kg7 {[%clk 0:00:15]} 65. Kf2 {[%clk 0:00:04]}  Kh7 {[%clk 0:00:16]} 66. Ke2 {[%clk 0:00:04]}  Kg7 {[%clk 0:00:16]} 67. Kd2 {[%clk 0:00:04]}  Rb1 {[%clk 0:00:17]} 68. Ke3 {[%clk 0:00:04]}  Rb2 {[%clk 0:00:17]} 69. Kf4 {[%clk 0:00:03]}  Rb4+ {[%clk 0:00:15]} 70. Kf5 {[%clk 0:00:03]}  Rb5+ {[%clk 0:00:15]} 71. Kg4 {[%clk 0:00:03]}  Rb4+ {[%clk 0:00:15]} 72. Kh5 {[%clk 0:00:03]}  Kh7 {[%clk 0:00:15]} 73. g6+ {[%clk 0:00:01]}  Kg7 {[%clk 0:00:16]} 74. Kg5 {[%clk 0:00:02]}  Rb5+ {[%clk 0:00:09]} 75. Kxh4 {[%clk 0:00:03]}  Rb1 {[%clk 0:00:09]} 76. g4 {[%clk 0:00:03]}  Rb5 {[%clk 0:00:09]} 77. Rd8 {[%clk 0:00:02]}  Rxb7 {[%clk 0:00:09]} 78. Rd5 {[%clk 0:00:02]}  Kxg6 {[%clk 0:00:08]} 79. Rf5 {[%clk 0:00:02]}  Rb1 {[%clk 0:00:08]} 80. Rg5+ {[%clk 0:00:03]}  Kh6 {[%clk 0:00:09]} 81. Rf5 {[%clk 0:00:04]}  Kh7 {[%clk 0:00:02]} 82. Kg3 {[%clk 0:00:05]}  Kg6 {[%clk 0:00:02]} 83. Ra5 {[%clk 0:00:04]}  Rb3+ {[%clk 0:00:03]} 84. Kf4 {[%clk 0:00:04]}  Rb6 {[%clk 0:00:04]} 85. Rf5 {[%clk 0:00:03]}  Re6 {[%clk 0:00:04]} 86. Rg5+ {[%clk 0:00:04]}  Kf6 {[%clk 0:00:05]} 87. Rf5+ {[%clk 0:00:04]}  Kg6 {[%clk 0:00:05]} 88. Rg5+ {[%clk 0:00:05]}  Kh7 {[%clk 0:00:06]} 89. Rf5 {[%clk 0:00:06]}  Kg6 {[%clk 0:00:05]} 1/2-1/2


[Site "https://www.chess.com"]

[Event "Titled Tuesday Blitz November 2 2021"]
[White "King, Alexander"]
[Black "Zhalmakhanov, Ramazan"]
[WhiteFideId "2063620"]
[BlackFideId "13706357"]
[WhiteElo "2306"]
[BlackElo "2531"]
[Result "0-1"]
[Round "04"]
[TimeControl "180+1"]
[Date "2021.11.02"]
[WhiteClock "0:00:07"]
[BlackClock "0:00:10"]

1. d4 {[%clk 0:03:00]}  Nf6 {[%clk 0:02:59]} 2. c4 {[%clk 0:03:01]}  e6 {[%clk 0:03:00]} 3. Nc3 {[%clk 0:03:01]}  Bb4 {[%clk 0:03:00]} 4. e3 {[%clk 0:03:02]}  b6 {[%clk 0:03:00]} 5. Ne2 {[%clk 0:03:02]}  Bb7 {[%clk 0:03:00]} 6. a3 {[%clk 0:03:03]}  Bd6 {[%clk 0:02:59]} 7. Ng3 {[%clk 0:03:02]}  O-O {[%clk 0:02:52]} 8. Bd3 {[%clk 0:02:20]}  c5 {[%clk 0:02:42]} 9. d5 {[%clk 0:02:14]}  Be5 {[%clk 0:02:38]} 10. Nge2 {[%clk 0:02:04]}  exd5 {[%clk 0:02:30]} 11. cxd5 {[%clk 0:02:05]}  Re8 {[%clk 0:02:20]} 12. O-O {[%clk 0:01:56]}  d6 {[%clk 0:02:01]} 13. e4 {[%clk 0:01:40]}  Ba6 {[%clk 0:01:17]} 14. h3 {[%clk 0:01:21]}  Qc8 {[%clk 0:01:02]} 15. f4 {[%clk 0:01:10]}  Bxc3 {[%clk 0:00:59]} 16. Nxc3 {[%clk 0:01:10]}  Nbd7 {[%clk 0:00:59]} 17. Re1 {[%clk 0:00:50]}  Bxd3 {[%clk 0:00:43]} 18. Qxd3 {[%clk 0:00:51]}  a6 {[%clk 0:00:43]} 19. a4 {[%clk 0:00:49]}  c4 {[%clk 0:00:34]} 20. Qd4 {[%clk 0:00:34]}  Nc5 {[%clk 0:00:34]} 21. Qxc4 {[%clk 0:00:20]}  Ncxe4 {[%clk 0:00:35]} 22. Qxc8 {[%clk 0:00:19]}  Raxc8 {[%clk 0:00:35]} 23. Nxe4 {[%clk 0:00:18]}  Rxe4 {[%clk 0:00:34]} 24. Rxe4 {[%clk 0:00:18]}  Nxe4 {[%clk 0:00:35]} 25. Be3 {[%clk 0:00:19]}  Rc2 {[%clk 0:00:36]} 26. b4 {[%clk 0:00:14]}  Rb2 {[%clk 0:00:26]} 27. b5 {[%clk 0:00:11]}  axb5 {[%clk 0:00:25]} 28. axb5 {[%clk 0:00:10]}  h5 {[%clk 0:00:21]} 29. Bxb6 {[%clk 0:00:09]}  Rxb5 {[%clk 0:00:22]} 30. Bd4 {[%clk 0:00:10]}  Rxd5 {[%clk 0:00:22]} 31. Be3 {[%clk 0:00:08]}  Rd3 {[%clk 0:00:22]} 32. Bb6 {[%clk 0:00:04]}  Kh7 {[%clk 0:00:15]} 33. Kh2 {[%clk 0:00:05]}  Kg6 {[%clk 0:00:15]} 34. Ra7 {[%clk 0:00:04]}  h4 {[%clk 0:00:10]} 35. f5+ {[%clk 0:00:02]}  Kxf5 {[%clk 0:00:04]} 36. Rxf7+ {[%clk 0:00:02]}  Kg6 {[%clk 0:00:03]} 37. Rf4 {[%clk 0:00:03]}  Nf6 {[%clk 0:00:02]} 38. Rxh4 {[%clk 0:00:03]}  Rb3 {[%clk 0:00:03]} 39. Bc7 {[%clk 0:00:03]}  d5 {[%clk 0:00:03]} 40. Be5 {[%clk 0:00:04]}  Ne4 {[%clk 0:00:04]} 41. Rg4+ {[%clk 0:00:03]}  Kf5 {[%clk 0:00:04]} 42. Bxg7 {[%clk 0:00:04]}  Nf2 {[%clk 0:00:05]} 43. Rg3 {[%clk 0:00:02]}  Rxg3 {[%clk 0:00:05]} 44. Kxg3 {[%clk 0:00:02]}  Ne4+ {[%clk 0:00:06]} 45. Kf3 {[%clk 0:00:03]}  Ng5+ {[%clk 0:00:07]} 46. Ke2 {[%clk 0:00:03]}  Ne6 {[%clk 0:00:08]} 47. Bb2 {[%clk 0:00:03]}  Ke4 {[%clk 0:00:08]} 48. g4 {[%clk 0:00:03]}  Nf4+ {[%clk 0:00:09]} 49. Kf2 {[%clk 0:00:04]}  Nxh3+ {[%clk 0:00:10]} 50. Kg3 {[%clk 0:00:05]}  Nf4 {[%clk 0:00:11]} 51. Bc1 {[%clk 0:00:05]}  Ne2+ {[%clk 0:00:11]} 52. Kh4 {[%clk 0:00:05]}  Nxc1 {[%clk 0:00:12]} 53. g5 {[%clk 0:00:06]}  Kf5 {[%clk 0:00:09]} 54. Kh5 {[%clk 0:00:06]}  Ne2 {[%clk 0:00:10]} 55. g6 {[%clk 0:00:07]}  Nf4+ {[%clk 0:00:10]} 0-1


[Site "https://www.chess.com"]

[Event "Titled Tuesday Blitz November 2 2021"]
[White "Schmakel, Sam"]
[Black "Zierk, Steven"]
[WhiteFideId "2039311"]
[BlackFideId "2034255"]
[WhiteElo "2356"]
[BlackElo "2494"]
[Result "0-1"]
[Round "04"]
[TimeControl "180+1"]
[Date "2021.11.02"]
[WhiteClock "0:00:02"]
[BlackClock "0:00:17"]

1. Nf3 {[%clk 0:03:00]}  d5 {[%clk 0:02:58]} 2. g3 {[%clk 0:02:59]}  Nf6 {[%clk 0:02:57]} 3. Bg2 {[%clk 0:02:58]}  c6 {[%clk 0:02:58]} 4. O-O {[%clk 0:02:56]}  Bg4 {[%clk 0:02:58]} 5. c4 {[%clk 0:02:56]}  e6 {[%clk 0:02:56]} 6. Qb3 {[%clk 0:02:55]}  Qb6 {[%clk 0:02:53]} 7. d3 {[%clk 0:02:55]}  Nbd7 {[%clk 0:02:53]} 8. Be3 {[%clk 0:02:52]}  Qxb3 {[%clk 0:02:52]} 9. axb3 {[%clk 0:02:53]}  a6 {[%clk 0:02:49]} 10. Bd4 {[%clk 0:02:45]}  Bd6 {[%clk 0:02:46]} 11. Bc3 {[%clk 0:02:44]}  O-O {[%clk 0:02:44]} 12. h3 {[%clk 0:02:25]}  Bxf3 {[%clk 0:02:39]} 13. Bxf3 {[%clk 0:02:26]}  e5 {[%clk 0:02:40]} 14. b4 {[%clk 0:02:21]}  e4 {[%clk 0:02:29]} 15. Bg2 {[%clk 0:02:21]}  Rfe8 {[%clk 0:02:24]} 16. dxe4 {[%clk 0:01:45]}  Nxe4 {[%clk 0:02:10]} 17. cxd5 {[%clk 0:01:38]}  cxd5 {[%clk 0:02:10]} 18. Rd1 {[%clk 0:01:30]}  Ndf6 {[%clk 0:02:06]} 19. Bxf6 {[%clk 0:01:19]}  Nxf6 {[%clk 0:02:05]} 20. Nc3 {[%clk 0:01:19]}  Bxb4 {[%clk 0:02:01]} 21. Nxd5 {[%clk 0:01:19]}  Nxd5 {[%clk 0:02:00]} 22. Bxd5 {[%clk 0:01:20]}  Rab8 {[%clk 0:01:32]} 23. e3 {[%clk 0:01:17]}  Kf8 {[%clk 0:01:31]} 24. Rac1 {[%clk 0:01:06]}  b6 {[%clk 0:01:30]} 25. Rc4 {[%clk 0:01:00]}  a5 {[%clk 0:01:28]} 26. Rh4 {[%clk 0:00:56]}  h6 {[%clk 0:01:26]} 27. Rf4 {[%clk 0:00:56]}  f6 {[%clk 0:01:24]} 28. Rc4 {[%clk 0:00:53]}  Rbd8 {[%clk 0:01:17]} 29. Kg2 {[%clk 0:00:48]}  Bc5 {[%clk 0:01:16]} 30. e4 {[%clk 0:00:44]}  f5 {[%clk 0:01:14]} 31. exf5 {[%clk 0:00:30]}  Re2 {[%clk 0:01:03]} 32. Rf4 {[%clk 0:00:31]}  Rxb2 {[%clk 0:01:03]} 33. f6 {[%clk 0:00:29]}  g5 {[%clk 0:00:59]} 34. Rf5 {[%clk 0:00:30]}  a4 {[%clk 0:00:58]} 35. h4 {[%clk 0:00:17]}  g4 {[%clk 0:00:57]} 36. Rf4 {[%clk 0:00:13]}  a3 {[%clk 0:00:55]} 37. Rxg4 {[%clk 0:00:13]}  Rxf2+ {[%clk 0:00:54]} 38. Kh3 {[%clk 0:00:13]}  Rxf6 {[%clk 0:00:49]} 39. Rg8+ {[%clk 0:00:10]}  Ke7 {[%clk 0:00:48]} 40. Re1+ {[%clk 0:00:11]}  Kd7 {[%clk 0:00:48]} 41. Rg7+ {[%clk 0:00:07]}  Kc8 {[%clk 0:00:42]} 42. Bc4 {[%clk 0:00:03]}  Rd7 {[%clk 0:00:40]} 43. Rg8+ {[%clk 0:00:02]}  Kc7 {[%clk 0:00:40]} 44. Ree8 {[%clk 0:00:03]}  Re7 {[%clk 0:00:34]} 45. Rc8+ {[%clk 0:00:03]}  Kd6 {[%clk 0:00:34]} 46. Rgd8+ {[%clk 0:00:03]}  Ke5 {[%clk 0:00:34]} 47. Rd5+ {[%clk 0:00:04]}  Ke4 {[%clk 0:00:35]} 48. Rg8 {[%clk 0:00:05]}  Ke3 {[%clk 0:00:29]} 49. Rd3+ {[%clk 0:00:04]}  Kf2 {[%clk 0:00:27]} 50. Rg4 {[%clk 0:00:03]}  Re2 {[%clk 0:00:24]} 51. Bd5 {[%clk 0:00:01]}  a2 {[%clk 0:00:21]} 52. Ra4 {[%clk 0:00:02]}  Rd6 {[%clk 0:00:17]} 0-1


[Site "https://www.chess.com"]

[Event "Titled Tuesday Blitz November 2 2021"]
[White "Siva Mahadevan"]
[Black "Kim, Sergey"]
[WhiteFideId "25043153"]
[BlackFideId "13700570"]
[WhiteElo "2203"]
[BlackElo "2582"]
[Result "1-0"]
[Round "04"]
[TimeControl "180+1"]
[Date "2021.11.02"]
[WhiteClock "0:01:50"]
[BlackClock "0:00:25"]

1. e4 {[%clk 0:02:59]}  e5 {[%clk 0:02:59]} 2. Nf3 {[%clk 0:02:59]}  Nc6 {[%clk 0:03:00]} 3. Bb5 {[%clk 0:03:00]}  a6 {[%clk 0:02:59]} 4. Ba4 {[%clk 0:03:01]}  Nf6 {[%clk 0:02:59]} 5. O-O {[%clk 0:03:01]}  b5 {[%clk 0:02:59]} 6. Bb3 {[%clk 0:03:01]}  Bc5 {[%clk 0:03:00]} 7. a4 {[%clk 0:03:01]}  Rb8 {[%clk 0:02:55]} 8. c3 {[%clk 0:03:01]}  d6 {[%clk 0:02:55]} 9. d4 {[%clk 0:03:01]}  Bb6 {[%clk 0:02:55]} 10. a5 {[%clk 0:03:02]}  Ba7 {[%clk 0:02:54]} 11. h3 {[%clk 0:03:02]}  h6 {[%clk 0:02:53]} 12. Be3 {[%clk 0:03:02]}  exd4 {[%clk 0:02:42]} 13. cxd4 {[%clk 0:03:02]}  O-O {[%clk 0:02:37]} 14. Nc3 {[%clk 0:03:00]}  Re8 {[%clk 0:02:36]} 15. Re1 {[%clk 0:02:59]}  Nb4 {[%clk 0:02:27]} 16. Qd2 {[%clk 0:02:55]}  Be6 {[%clk 0:02:00]} 17. d5 {[%clk 0:02:46]}  Bxe3 {[%clk 0:01:56]} 18. Rxe3 {[%clk 0:02:47]}  Bd7 {[%clk 0:01:50]} 19. Nd4 {[%clk 0:02:47]}  c5 {[%clk 0:01:37]} 20. dxc6 {[%clk 0:02:48]}  Nxc6 {[%clk 0:01:37]} 21. Rg3 {[%clk 0:02:44]}  Nxd4 {[%clk 0:01:32]} 22. Qxd4 {[%clk 0:02:45]}  Be6 {[%clk 0:01:31]} 23. Bxe6 {[%clk 0:02:41]}  fxe6 {[%clk 0:01:27]} 24. e5 {[%clk 0:02:40]}  dxe5 {[%clk 0:01:20]} 25. Qxe5 {[%clk 0:02:41]}  Qe7 {[%clk 0:01:19]} 26. Re1 {[%clk 0:02:38]}  Qf7 {[%clk 0:01:17]} 27. Ree3 {[%clk 0:02:35]}  Rbd8 {[%clk 0:01:16]} 28. Ref3 {[%clk 0:02:35]}  Kh8 {[%clk 0:01:15]} 29. Ne4 {[%clk 0:02:27]}  Rf8 {[%clk 0:01:15]} 30. Nxf6 {[%clk 0:02:25]}  gxf6 {[%clk 0:01:15]} 31. Qe3 {[%clk 0:02:19]}  Kh7 {[%clk 0:01:11]} 32. Rf4 {[%clk 0:02:19]}  Rd5 {[%clk 0:01:07]} 33. Rh4 {[%clk 0:02:17]}  Rg5 {[%clk 0:00:56]} 34. Kh2 {[%clk 0:02:02]}  Rfg8 {[%clk 0:00:49]} 35. Rd4 {[%clk 0:02:00]}  f5 {[%clk 0:00:38]} 36. Rxg5 {[%clk 0:01:51]}  hxg5 {[%clk 0:00:36]} 37. Rd6 {[%clk 0:01:52]}  Rg6 {[%clk 0:00:35]} 38. Qd4 {[%clk 0:01:51]}  Qf6 {[%clk 0:00:32]} 39. Qxf6 {[%clk 0:01:49]}  Rxf6 {[%clk 0:00:31]} 40. Rxa6 {[%clk 0:01:50]}  f4 {[%clk 0:00:25]} 41. Rb6 {[%clk 0:01:50]} 1-0


[Site "https://www.chess.com"]